fUSD/lending_fUSD_20240714
["ID","MTS","AMOUNT","RATE_DAILY","PERIOD"]
[332051409,1720943457053,-500.0,0.00013753,2]
[332051410,1720943457062,-660.16,0.00013753,2]
[332051411,1720943457072,-500.0,0.00013753,2]
[332051412,1720943457082,-500.0,0.00013753,2]
[332051413,1720943457092,-500.0,0.00013753,2]
[332051414,1720943457102,-500.0,0.00013753,2]
[332051415,1720943457112,-563.43,0.00013753,2]
[332051416,1720943457122,-500.0,0.00013753,2]
[332051417,1720943457133,-500.0,0.00013753,2]
[332051418,1720943457145,-244.89472605,0.00013753,2]
[332051419,1720943457155,-1199.31,0.00013753,2]
[332051420,1720943457165,-379.69058216,0.00013753,2]
[332051421,1720943457184,-120.30941784,0.00013753,2]
[332051422,1720943457194,-500.0,0.00013753,2]
[332051423,1720943457203,-1042.93,0.00013753,2]
[332051424,1720943457213,-500.0,0.00013753,2]
[332051425,1720943457223,-500.0,0.00013753,2]
[332051426,1720943457233,-500.0,0.00013753,2]
[332051427,1720943457243,-500.0,0.00013753,2]
[332051428,1720943457255,-1643.39,0.00013753,2]
[332051429,1720943457266,-500.0,0.00013753,2]
[332051430,1720943457275,-500.0,0.00013753,2]
[332051431,1720943457285,-500.0,0.00013753,2]
[332051432,1720943457295,-500.0,0.00013753,2]
[332051433,1720943457307,-682.61,0.00013753,2]
[332051434,1720943457317,-891.37,0.00013753,2]
[332051435,1720943457326,-500.0,0.00013753,2]
[332051436,1720943457336,-500.0,0.00013753,2]
[332051437,1720943457346,-500.0,0.00013753,2]
[332051438,1720943457356,-690.4,0.00013753,2]
[332051439,1720943457366,-1031.88,0.00013753,2]
[332051440,1720943457375,-500.0,0.00013753,2]
[332051441,1720943457384,-663.74,0.00013753,2]
[332051442,1720943457395,-378.27704631,0.00013753,2]
[332051443,1720943457406,-645.88,0.00013753,2]
[332051444,1720943457415,-500.0,0.00013753,2]
[332051445,1720943457424,-500.0,0.00013753,2]
[332051446,1720943457436,-500.0,0.00013753,2]
[332051447,1720943457447,-500.0,0.00013753,2]
[332051448,1720943457459,-1151.95,0.00013753,2]
[332051449,1720943457472,-500.0,0.00013753,2]
[332051450,1720943457483,-1038.98,0.00013753,2]
[332051451,1720943457493,-881.81,0.00013753,2]
[332051452,1720943457502,-500.0,0.00013753,2]
[332051453,1720943457513,-240.44646661,0.00013753,2]
[332051454,1720943457522,-534.86,0.00013753,2]
[332051455,1720943457531,-500.0,0.00013753,2]
[332051456,1720943457540,-500.0,0.00013753,2]
[332051457,1720943457550,-438.19696793,0.00013753,2]
[332051458,1720943457577,-61.80303207,0.00013753,2]
[332051459,1720943457586,-552.53,0.00013753,2]
[332051460,1720943457596,-500.0,0.00013753,2]
[332051461,1720943457605,-500.0,0.00013753,2]
[332051462,1720943457614,-500.0,0.00013753,2]
[332051463,1720943457623,-878.3,0.00013753,2]
[332051464,1720943457632,-608.05,0.00013753,2]
[332051465,1720943457642,-597.63,0.00013753,2]
[332051466,1720943457652,-500.0,0.00013753,2]
[332051467,1720943457661,-1042.52,0.00013753,2]
[332051468,1720943457671,-948.49,0.00013753,2]
[332051469,1720943457680,-500.0,0.00013753,2]
[332051470,1720943457690,-500.0,0.00013753,2]
[332051471,1720943457700,-500.0,0.00013753,2]
[332051472,1720943457709,-500.0,0.00013753,2]
[332051473,1720943457718,-500.0,0.00013753,2]
[332051474,1720943457729,-500.0,0.00013753,2]
[332051475,1720943457739,-500.0,0.00013753,2]
[332051476,1720943457749,-998.36,0.00013753,2]
[332051477,1720943457758,-1166.4,0.00013753,2]
[332051478,1720943457767,-623.49,0.00013753,2]
[332051479,1720943457777,-561.59,0.00013753,2]
[332051480,1720943457786,-500.0,0.00013753,2]
[332051481,1720943457795,-963.63,0.00013753,2]
[332051482,1720943457805,-1045.4,0.00013753,2]
[332051483,1720943457814,-500.0,0.00013753,2]
[332051484,1720943457823,-500.0,0.00013753,2]
[332051485,1720943457832,-1595.41,0.00013753,2]
[332051486,1720943457842,-1267.12,0.00013753,2]
[332051487,1720943457851,-500.0,0.00013753,2]
[332051488,1720943457860,-500.0,0.00013753,2]
[332051489,1720943457870,-500.0,0.00013753,2]
[332051490,1720943457879,-500.0,0.00013753,2]
[332051491,1720943457889,-500.0,0.00013753,2]
[332051492,1720943457898,-778.73,0.00013753,2]
[332051493,1720943457907,-500.0,0.00013753,2]
[332051494,1720943457917,-500.0,0.00013753,2]
[332051495,1720943457926,-500.0,0.00013753,2]
[332051496,1720943457935,-500.0,0.00013753,2]
[332051497,1720943457944,-500.0,0.00013753,2]
[332051498,1720943457955,-500.0,0.00013753,2]
[332051499,1720943457964,-1413.5,0.00013753,2]
[332051500,1720943457974,-500.0,0.00013753,2]
[332051501,1720943457983,-907.26,0.00013753,2]
[332051502,1720943457993,-795.29,0.00013753,2]
[332051503,1720943458003,-500.0,0.00013753,2]
[332051504,1720943458013,-500.0,0.00013753,2]
[332051505,1720943458022,-500.0,0.00013753,2]
[332051506,1720943458032,-500.0,0.00013753,2]
[332051507,1720943458042,-500.0,0.00013753,2]
[332051508,1720943458052,-500.0,0.00013753,2]
[332051509,1720943458062,-500.0,0.00013753,2]
[332051510,1720943458071,-1628.15,0.00013753,2]
[332051511,1720943458081,-734.6,0.00013753,2]
[332051512,1720943458091,-500.0,0.00013753,2]
[332051513,1720943458101,-500.0,0.00013753,2]
[332051514,1720943458111,-1989.15,0.00013753,2]
[332051515,1720943458121,-665.27,0.00013753,2]
[332051516,1720943458131,-500.0,0.00013753,2]
[332051517,1720943458140,-500.0,0.00013753,2]
[332051518,1720943458150,-1580.66,0.00013753,2]
[332051519,1720943458159,-676.05,0.00013753,2]
[332051520,1720943458170,-500.0,0.00013753,2]
[332051521,1720943458180,-500.0,0.00013753,2]
[332051522,1720943458191,-1042.08,0.00013753,2]
[332051523,1720943458202,-500.0,0.00013753,2]
[332051524,1720943458212,-823.09,0.00013753,2]
[332051525,1720943458222,-500.0,0.00013753,2]
[332051526,1720943458232,-500.0,0.00013753,2]
[332051527,1720943458305,-1370.62,0.00013753,2]
[332051528,1720943458315,-500.0,0.00013753,2]
[332051529,1720943458325,-500.0,0.00013753,2]
[332051530,1720943458335,-792.13,0.00013753,2]
[332051531,1720943458344,-708.18,0.00013753,2]
[332051532,1720943458353,-500.0,0.00013753,2]
[332051533,1720943458362,-527.93,0.00013753,2]
[332051534,1720943458371,-9000.31,0.00013753,2]
[332051535,1720943458380,-500.0,0.00013753,2]
[332051536,1720943458389,-500.0,0.00013753,2]
[332051537,1720943458399,-1881.42,0.00013753,2]
[332051538,1720943458410,-577.46,0.00013753,2]
[332051539,1720943458419,-1411.94,0.00013753,2]
[332051540,1720943458429,-500.0,0.00013753,2]
[332051541,1720943458438,-500.0,0.00013753,2]
[332051542,1720943458450,-500.0,0.00013753,2]
[332051543,1720943458460,-1725.14,0.00013753,2]
[332051544,1720943458469,-1170.13,0.00013753,2]
[332051545,1720943458479,-500.0,0.00013753,2]
[332051546,1720943458488,-500.0,0.00013753,2]
[332051547,1720943458497,-500.0,0.00013753,2]
[332051548,1720943458507,-500.0,0.00013753,2]
[332051549,1720943458517,-500.0,0.00013753,2]
[332051550,1720943458526,-500.0,0.00013753,2]
[332051551,1720943458535,-500.0,0.00013753,2]
[332051552,1720943458545,-977.39,0.00013753,2]
[332051553,1720943458554,-500.0,0.00013753,2]
[332051554,1720943458564,-500.0,0.00013753,2]
[332051555,1720943458573,-503.45,0.00013753,2]
[332051556,1720943458583,-500.0,0.00013753,2]
[332051557,1720943458592,-500.0,0.00013753,2]
[332051558,1720943458602,-500.0,0.00013753,2]
[332051559,1720943458611,-500.0,0.00013753,2]
[332051560,1720943458620,-880.82,0.00013753,2]
[332051561,1720943458629,-520.27,0.00013753,2]
[332051562,1720943458638,-500.0,0.00013753,2]
[332051563,1720943458647,-500.0,0.00013753,2]
[332051564,1720943458656,-500.0,0.00013753,2]
[332051565,1720943458665,-659.92,0.00013753,2]
[332051566,1720943458674,-500.0,0.00013753,2]
[332051567,1720943458683,-500.0,0.00013753,2]
[332051568,1720943458692,-500.0,0.00013753,2]
[332051569,1720943458702,-500.0,0.00013753,2]
[332051570,1720943458711,-500.0,0.00013753,2]
[332051571,1720943458720,-500.0,0.00013753,2]
[332051572,1720943458729,-1238.71,0.00013753,2]
[332051573,1720943458738,-500.0,0.00013753,2]
[332051574,1720943458747,-500.0,0.00013753,2]
[332051575,1720943458756,-1343.63,0.00013753,2]
[332051576,1720943458766,-1067.42,0.00013753,2]
[332051577,1720943458778,-500.0,0.00013753,2]
[332051578,1720943458788,-528.9,0.00013753,2]
[332051579,1720943458797,-500.0,0.00013753,2]
[332051580,1720943458807,-995.78,0.00013753,2]
[332051581,1720943458817,-775.95,0.00013753,2]
[332051582,1720943458827,-500.0,0.00013753,2]
[332051583,1720943458837,-500.0,0.00013753,2]
[332051584,1720943458847,-500.0,0.00013753,2]
[332051585,1720943458859,-500.0,0.00013753,2]
[332051586,1720943458870,-500.0,0.00013753,2]
[332051587,1720943458880,-1589.3,0.00013753,2]
[332051588,1720943458890,-500.0,0.00013753,2]
[332051589,1720943458899,-500.0,0.00013753,2]
[332051590,1720943458910,-500.0,0.00013753,2]
[332051591,1720943458919,-658.77,0.00013753,2]
[332051592,1720943458929,-4094.34,0.00013753,2]
[332051593,1720943458939,-4540.17,0.00013753,2]
[332051594,1720943458949,-797.28,0.00013753,2]
[332051595,1720943458959,-500.0,0.00013753,2]
[332051596,1720943458968,-996.17,0.00013753,2]
[332051597,1720943458978,-1003.18,0.00013753,2]
[332051598,1720943458988,-500.0,0.00013753,2]
[332051599,1720943458997,-500.0,0.00013753,2]
[332051600,1720943459007,-837.38,0.00013753,2]
[332051601,1720943459017,-2724.36,0.00013753,2]
[332051602,1720943459027,-500.0,0.00013753,2]
[332051603,1720943459036,-500.0,0.00013753,2]
[332051604,1720943459046,-878.54,0.00013753,2]
[332051605,1720943459055,-500.0,0.00013753,2]
[332051606,1720943459065,-698.09,0.00013753,2]
[332051607,1720943459074,-729.42,0.00013753,2]
[332051608,1720943459084,-500.0,0.00013753,2]
[332051609,1720943459093,-1618.59,0.00013753,2]
[332051610,1720943459102,-500.0,0.00013753,2]
[332051611,1720943459112,-1229.13,0.00013753,2]
[332051612,1720943459121,-737.99,0.00013753,2]
[332051613,1720943459132,-500.0,0.00013753,2]
[332051614,1720943459141,-1235.41,0.00013753,2]
[332051615,1720943459150,-500.0,0.00013753,2]
[332051616,1720943459160,-561.58,0.00013753,2]
[332051617,1720943459170,-500.0,0.00013753,2]
[332051618,1720943459179,-500.0,0.00013753,2]
[332051619,1720943459188,-500.0,0.00013753,2]
[332051620,1720943459198,-500.0,0.00013753,2]
[332051621,1720943459208,-500.0,0.00013753,2]
[332051622,1720943459218,-1067.35,0.00013753,2]
[332051623,1720943459227,-500.0,0.00013753,2]
[332051624,1720943459236,-1493.31,0.00013753,2]
[332051625,1720943459245,-500.0,0.00013753,2]
[332051626,1720943459255,-1348.01,0.00013753,2]
[332051627,1720943459264,-500.0,0.00013753,2]
[332051628,1720943459274,-500.0,0.00013753,2]
[332051629,1720943459283,-543.79,0.00013753,2]
[332051630,1720943459293,-500.0,0.00013753,2]
[332051631,1720943459302,-500.0,0.00013753,2]
[332051632,1720943459311,-500.0,0.00013753,2]
[332051633,1720943459321,-945.89,0.00013753,2]
[332051634,1720943459330,-500.0,0.00013753,2]
[332051635,1720943459340,-500.0,0.00013753,2]
[332051636,1720943459349,-500.0,0.00013753,2]
[332051637,1720943459359,-500.0,0.00013753,2]
[332051638,1720943459368,-58.90257396,0.00013753,2]
[332051639,1720943459385,-441.09742604,0.00013753,2]
[332051640,1720943459397,-634.27,0.00013753,2]
[332051641,1720943459407,-500.0,0.00013753,2]
[332051642,1720943459416,-500.0,0.00013753,2]
[332051643,1720943459426,-500.0,0.00013753,2]
[332051644,1720943459438,-1078.43,0.00013753,2]
[332051645,1720943459447,-3362.73,0.00013753,2]
[332051646,1720943459457,-500.0,0.00013753,2]
[332051647,1720943459468,-1315.43,0.00013753,2]
[332051648,1720943459477,-656.69,0.00013753,2]
[332051649,1720943459487,-773.08,0.00013753,2]
[332051650,1720943459496,-232.50253535,0.00013753,2]
[332051651,1720943459506,-500.0,0.00013753,2]
[332051652,1720943459515,-691.02,0.00013753,2]
[332051653,1720943459525,-758.12,0.00013753,2]
[332051654,1720943459534,-500.0,0.00013753,2]
[332051655,1720943459543,-490.70182993,0.00013753,2]
[332051656,1720943459555,-9.29817007,0.00013753,2]
[332051657,1720943459564,-371.33745545,0.00013753,2]
[332051658,1720943459687,-128.66254455,0.00013753,2]
[332051659,1720943459696,-500.0,0.00013753,2]
[332051660,1720943459706,-734.88007938,0.00013753,2]
[332051661,1720943459717,-971.05992062,0.00013753,2]
[332051662,1720943459727,-500.0,0.00013753,2]
[332051663,1720943459736,-500.0,0.00013753,2]
[332051664,1720943459745,-500.0,0.00013753,2]
[332051665,1720943459754,-547.8,0.00013753,2]
[332051666,1720943459763,-888.67,0.00013753,2]
[332051667,1720943459773,-500.0,0.00013753,2]
[332051668,1720943459782,-500.0,0.00013753,2]
[332051669,1720943459791,-500.0,0.00013753,2]
[332051670,1720943459800,-500.0,0.00013753,2]
[332051671,1720943459810,-904.1,0.00013753,2]
[332051672,1720943459820,-500.0,0.00013753,2]
[332051673,1720943459829,-738.05,0.00013753,2]
[332051674,1720943459838,-1708.78,0.00013753,2]
[332051675,1720943459848,-630.52,0.00013753,2]
[332051676,1720943459857,-500.0,0.00013753,2]
[332051677,1720943459868,-680.19,0.00013753,2]
[332051678,1720943459877,-536.43,0.00013753,2]
[332051679,1720943459886,-1608.6,0.00013753,2]
[332051680,1720943459896,-500.0,0.00013753,2]
[332051681,1720943459905,-668.06,0.00013753,2]
[332051682,1720943459915,-768.11,0.00013753,2]
[332051683,1720943459925,-688.89,0.00013753,2]
[332051684,1720943459934,-500.0,0.00013753,2]
[332051685,1720943459944,-889.37,0.00013753,2]
[332051686,1720943459956,-1364.45,0.00013753,2]
[332051687,1720943459965,-500.0,0.00013753,2]
[332051688,1720943459975,-500.0,0.00013753,2]
[332051689,1720943459986,-500.0,0.00013753,2]
[332051690,1720943459995,-500.0,0.00013753,2]
[332051691,1720943460004,-500.0,0.00013753,2]
[332051692,1720943460014,-500.0,0.00013753,2]
[332051693,1720943460023,-500.0,0.00013753,2]
[332051694,1720943460033,-8186.65,0.00013753,2]
[332051695,1720943460043,-667.42,0.00013753,2]
[332051696,1720943460053,-500.0,0.00013753,2]
[332051697,1720943460064,-500.0,0.00013753,2]
[332051698,1720943460074,-1405.77,0.00013753,2]
[332051699,1720943460085,-511.29,0.00013753,2]
[332051700,1720943460094,-500.0,0.00013753,2]
[332051701,1720943460104,-248.44300594,0.00013753,2]
[332051702,1720943460113,-500.0,0.00013753,2]
[332051703,1720943460123,-1005.38,0.00013753,2]
[332051704,1720943460132,-500.0,0.00013753,2]
[332051705,1720943460141,-500.0,0.00013753,2]
[332051706,1720943460150,-500.0,0.00013753,2]
[332051707,1720943460160,-500.0,0.00013753,2]
[332051708,1720943460170,-500.0,0.00013753,2]
[332051709,1720943460179,-807.36,0.00013753,2]
[332051710,1720943460188,-1595.53,0.00013753,2]
[332051711,1720943460197,-500.0,0.00013753,2]
[332051712,1720943460209,-1051.54,0.00013753,2]
[332051713,1720943460218,-500.0,0.00013753,2]
[332051714,1720943460228,-500.0,0.00013753,2]
[332051715,1720943460237,-500.0,0.00013753,2]
[332051716,1720943460247,-500.0,0.00013753,2]
[332051717,1720943460257,-500.0,0.00013753,2]
[332051718,1720943460266,-500.0,0.00013753,2]
[332051719,1720943460276,-500.0,0.00013753,2]
[332051720,1720943460285,-500.0,0.00013753,2]
[332051721,1720943460294,-500.0,0.00013753,2]
[332051722,1720943460303,-935.02,0.00013753,2]
[332051723,1720943460313,-1036.53,0.00013753,2]
[332051724,1720943460322,-500.0,0.00013753,2]
[332051725,1720943460331,-1268.23,0.00013753,2]
[332051726,1720943460341,-1177.64,0.00013753,2]
[332051727,1720943460350,-387.69080451,0.00013753,2]
[332051728,1720943460374,-112.30919549,0.00013753,2]
[332051729,1720943460384,-364.14858166,0.00013753,2]
[332051730,1720943460397,-135.85141834,0.00013753,2]
[332051731,1720943460407,-657.22,0.00013753,2]
[332051732,1720943460416,-500.0,0.00013753,2]
[332051733,1720943460426,-500.0,0.00013753,2]
[332051734,1720943460436,-500.0,0.00013753,2]
[332051735,1720943460445,-500.0,0.00013753,2]
[332051736,1720943460456,-500.0,0.00013753,2]
[332051737,1720943460466,-397.59518166,0.00013753,2]
[332051738,1720943460479,-454.18508886,0.00013753,2]
[332051739,1720943460491,-150.71972948,0.00013753,2]
[332051740,1720943460500,-500.0,0.00013753,2]
[332051741,1720943460509,-1384.56,0.00013753,2]
[332051742,1720943460518,-276.57132599,0.00013753,2]
[332051743,1720943460529,-223.42867401,0.00013753,2]
[332051744,1720943460539,-282.13209727,0.00013753,2]
[332051745,1720943461170,-500.0,0.00013698,2]
[332051746,1720943461180,-160.33561149,0.00013698,2]
[332051747,1720943461204,-339.66438851,0.00013698,2]
[332051748,1720943461214,-474.23,0.00013698,2]
[332051749,1720943461223,-500.0,0.00013698,2]
[332051750,1720943461232,-912.05790273,0.00013753,2]
[332051751,1720943461241,-704.27,0.00013753,2]
[332051752,1720943461251,-500.0,0.00013753,2]
[332051753,1720943461262,-754.03,0.00013753,2]
[332051754,1720943461273,-500.0,0.00013753,2]
[332051755,1720943461283,-500.0,0.00013753,2]
[332051756,1720943461295,-1061.39,0.00013753,2]
[332051757,1720943461304,-421.40585547,0.00013753,2]
[332051758,1720943461326,-305.12414453,0.00013753,2]
[332051759,1720943461335,-24.57599883,0.00013753,2]
[332051760,1720943462228,-1241.23400117,0.00013753,2]
[332051761,1720943462238,-1186.21,0.00013753,2]
[332051762,1720943462247,-1008.14,0.00013753,2]
[332051763,1720943462258,-967.18,0.00013753,2]
[332051764,1720943462268,-500.0,0.00013753,2]
[332051765,1720943462278,-500.0,0.00013753,2]
[332051766,1720943462288,-500.0,0.00013753,2]
[332051767,1720943462297,-890.28,0.00013753,2]
[332051768,1720943462307,-500.0,0.00013753,2]
[332051769,1720943462317,-500.0,0.00013753,2]
[332051770,1720943462327,-500.0,0.00013753,2]
[332051771,1720943462336,-500.0,0.00013753,2]
[332051772,1720943462347,-500.0,0.00013753,2]
[332051773,1720943462356,-500.0,0.00013753,2]
[332051774,1720943462366,-666.5091194,0.00013759,2]
[332051775,1720943462376,-500.0,0.00013789,2]
[332051776,1720943462386,-500.0,0.00013789,2]
[332051777,1720943462400,-500.0,0.00013799,2]
[332051778,1720943462411,-500.0,0.00013807,2]
[332051779,1720943462422,-514.27,0.00013807,2]
[332051780,1720943462432,-400.0,0.00013807,2]
[332051781,1720943462443,-500.0,0.00013807,2]
[332051782,1720943462454,-284.09906898,0.00013808,2]
[332051783,1720943462464,-10.72579722,0.00013808,2]
[332051784,1720943463270,-661.67,0.00013698,2]
[332051785,1720943463280,-500.0,0.00013698,2]
[332051786,1720943463290,-500.0,0.00013698,2]
[332051787,1720943463299,-500.0,0.00013698,2]
[332051788,1720943463309,-341.3,0.00013698,2]
[332051789,1720943463319,-77.03,0.00013698,2]
[332051790,1720943463334,-422.97,0.00013698,2]
[332051791,1720943463344,-197.89580536,0.00013708,2]
[332051792,1720943463354,-661.67,0.00013753,2]
[332051793,1720943463363,-500.0,0.00013753,2]
[332051794,1720943463373,-500.0,0.00013753,2]
[332051795,1720943463383,-500.0,0.00013753,2]
[332051796,1720943463397,-489.27420278,0.00013808,2]
[332051797,1720943463624,-500.0,0.00013808,2]
[332051798,1720943463695,-500.0,0.00013808,2]
[332051799,1720943463706,-200.0,0.00013808,2]
[332051800,1720943463716,-500.0,0.00013808,2]
[332051801,1720943463726,-500.0,0.00013808,2]
[332051802,1720943463736,-500.0,0.00013808,2]
[332051803,1720943463745,-500.0,0.00013808,2]
[332051804,1720943463755,-500.0,0.00013808,2]
[332051805,1720943463765,-562.19,0.00013808,2]
[332051806,1720943463774,-553.02,0.00013808,2]
[332051807,1720943463784,-500.0,0.00013808,2]
[332051808,1720943463793,-456.91090566,0.00013808,2]
[332051809,1720943463812,-43.08909434,0.00013808,2]
[332051810,1720943463822,-846.78,0.00013808,2]
[332051811,1720943463831,-500.0,0.00013808,2]
[332051812,1720943463841,-298.39339498,0.00013808,2]
[332051813,1720943463851,-500.0,0.00013808,2]
[332051814,1720943463860,-500.0,0.00013808,2]
[332051815,1720943463869,-532.96,0.00013808,2]
[332051816,1720943463879,-1064.54,0.00013808,2]
[332051817,1720943463889,-291.67,0.00013808,2]
[332051818,1720943463899,-500.0,0.00013808,2]
[332051819,1720943463909,-500.0,0.00013808,2]
[332051820,1720943463918,-500.0,0.00013808,2]
[332051821,1720943463928,-286.22066614,0.00013808,2]
[332051822,1720943463941,-213.77933386,0.00013808,2]
[332051823,1720943463952,-150.62391177,0.00013808,2]
[332051824,1720943583617,2000.0,0.00025,60]
[332051825,1720943588214,2000.0,0.00025,60]
[332051827,1720943603134,500.0,0.00025425,120]
[332051828,1720943603271,500.0,0.00026532,120]
[332051829,1720943671978,669.94748662,0.00025,90]
[332051830,1720943707014,391.46,0.00010675,2]
[332051831,1720943756939,669.94748662,0.00025,90]
[332051832,1720943805320,194.92136016,0.00010998,2]
[332051833,1720943857948,272.53982792,0.00025,90]
[332051838,1720944192090,170.46,9.853e-05,2]
[332051839,1720944244797,371.88,0.00010427,2]
[332051840,1720944260819,163.56605059,0.00010998,2]
[332051841,1720944303717,800.0,0.00026986,120]
[332051842,1720944319695,2000.0,0.00025,60]
[332051843,1720944362209,2000.0,0.00025,60]
[332051850,1720944549118,800.0,0.00026986,120]
[332051860,1720944631488,-446.118849,0.0001104,2]
[332051861,1720944631497,-701.0,0.00011096,2]
[332051862,1720944631507,-300.0,0.00011096,2]
[332051863,1720944631516,-6315.5653351,0.00011097,2]
[332051864,1720944631528,-2930.24637197,0.00011097,2]
[332051865,1720944631537,-150.0,0.00011097,2]
[332051866,1720944631546,-6267.06015223,0.00011098,2]
[332051867,1720944631555,-242.49333518,0.00011098,2]
[332051868,1720944631565,-5391.8897417,0.00011098,2]
[332051869,1720944631574,-620.57344992,0.00011098,2]
[332051870,1720944631603,-33.66795887,0.00011098,2]
[332051871,1720944631612,-264.19460698,0.00011098,2]
[332051872,1720944631624,-107.39760811,0.00011098,2]
[332051873,1720944631634,-2496.31546175,0.00011098,2]
[332051874,1720944631647,-943.26744094,0.00011098,2]
[332051875,1720944631659,-574.32971375,0.00011098,2]
[332051876,1720944631670,-14418.54279118,0.00011098,2]
[332051877,1720944631679,-978.4295,0.00011099,2]
[332051878,1720944631689,-2016.5188928,0.00011196,2]
[332051879,1720944631698,-6650.95003275,0.00011199,2]
[332051880,1720944631722,-2478.40009463,0.00011199,2]
[332051881,1720944631740,-409.12146104,0.00011199,2]
[332051885,1720944631984,-9231.37963767,0.00011199,2]
[332051890,1720944632025,-1194.71921414,0.00011199,2]
[332051893,1720944632049,-2219.57379425,0.00011199,2]
[332051896,1720944632061,-4114.08125678,0.00011199,2]
[332051900,1720944632097,-514.29235671,0.00011199,2]
[332051923,1720944637440,-544.38170658,0.00011199,2]
[332051924,1720944637451,-2644.17619719,0.00011199,2]
[332051925,1720944637462,-6525.06999584,0.00011199,2]
[332051926,1720944637473,-1019.83248483,0.00011199,2]
[332051927,1720944637484,-332.57131004,0.00011199,2]
[332051928,1720944637495,-1773.35208208,0.00011199,2]
[332051929,1720944637511,-5911.40242929,0.00011199,2]
[332051930,1720944637522,-956.99378914,0.00011199,2]
[332051931,1720944637534,-33492.08109308,0.00011199,2]
[332051932,1720944637543,-2142.4852451,0.00011199,2]
[332051933,1720944637552,-8049.36677896,0.00011199,2]
[332051934,1720944637562,-250.0,0.00012011,2]
[332051935,1720944637571,-500.0,0.00012053,2]
[332051936,1720944637580,-5488.93,0.00012053,2]
[332051937,1720944637589,-1173.51,0.00012053,2]
[332051938,1720944637598,-313.35,0.00012059,2]
[332051939,1720944637607,-420.0,0.00012192,2]
[332051940,1720944637616,-250.0,0.00012243,2]
[332051941,1720944637626,-171.41,0.00012317,2]
[332051942,1720944637635,-23880.0,0.00012318,2]
[332051943,1720944637645,-686.65,0.00012593,2]
[332051944,1720944637654,-371.88,0.00012691,2]
[332051945,1720944637663,-12577.8517,0.00012799,2]
[332051946,1720944637673,-251.7855931,0.00012845,2]
[332051947,1720944637682,-460.6417,0.00012899,2]
[332051948,1720944637691,-2500.0,0.00012899,2]
[332051949,1720944637700,-151497.5622489,0.00012999,2]
[332051950,1720944637709,-1250.0,0.00013,2]
[332051951,1720944637718,-301.8667,0.00013112,2]
[332051952,1720944637727,-575.0,0.00013158,2]
[332051953,1720944637737,-181.575577,0.00013199,2]
[332051954,1720944637751,-196.956154,0.00013199,2]
[332051955,1720944637760,-242.672148,0.00013199,2]
[332051956,1720944637769,-181.575577,0.00013199,2]
[332051957,1720944637779,-164.130128,0.00013199,2]
[332051958,1720944637790,-150.071927,0.00013199,2]
[332051959,1720944637799,-196.956154,0.00013364,2]
[332051960,1720944637808,-242.672148,0.00013364,2]
[332051961,1720944637818,-150.071927,0.00013364,2]
[332051962,1720944637827,-587.0,0.00013396,2]
[332051963,1720944637837,-181.575577,0.00013419,2]
[332051964,1720944637847,-181.575577,0.00013419,2]